Cogmind - Beta 10.1 --- EXPLORER MODE // 2020.10.14 @ 13:36:18 Player: MoMMI Result: Destroyed by H-55 Commando with Assault Rifle Performance ------------- Evolutions (2) 1000 Regions Visited (7) 1400 Robots Destroyed (39) 195 Value Destroyed (1052) 1052 Prototype IDs (6) 120 Alien Tech Used (0) 0 Bonus (0) 0 TOTAL SCORE: 3767 Bonus ------- None Cogmind --------- Core Integrity 0/550 Matter 300/300 Energy 100/100 System Corruption 0% Temperature Cool (0) Movement Core (50) Location -8/Materials Parts ------- > --- POWER (2) -------- (None) > --- PROPULSION (4) --- (None) > --- UTILITY (4) ------ Signal Interpreter > --- WEAPON (2) ------- (None) > --- INVENTORY (4) ---- Medium Storage Unit Experimental Sensor Array Peak State ------------ > --- POWER ------------ Light Nuclear Core > --- PROPULSION ------- Cesium-ion Thruster Cesium-ion Thruster Cesium-ion Thruster > --- UTILITY ---------- Improved Heat Sink Structural Scanner Experimental Sensor Array Improved Light Armor Plating > --- WEAPON ----------- Beamcaster Heavy Battle Rifle > --- INVENTORY -------- Aluminum Leg Hover Unit Medium Storage Unit Improved Trap Extractor [Rating: 34] Favorites ----------- Power Light Nuclear Core Engine Light Ion Engine Power Core Light Nuclear Core Propulsion Cesium-ion Thruster Leg Aluminum Leg Flight Unit Cesium-ion Thruster Utility Structural Scanner Device Structural Scanner Storage Medium Storage Unit Processor Signal Interpreter Protection Improved Light Armor Plating Weapon Heavy Battle Rifle Energy Gun Beamcaster Ballistic Gun Heavy Battle Rifle Launcher Rocket Launcher Build | -11 -10 -10 -9 -9 -9 -8 -8 ------- Run | Scr Mat Min Mat Min Exi Min Mat Slots Evolved 5 | . 1 . 2 . . . 2 Power 1 | . . . . . . . 1 Propulsion 2 | . . . 1 . . . 1 Utility 2 | . 1 . 1 . . . . Weapon . | . . . . . . . . Parts Attached 45 | 7 3 8 22 . . . 5 Power 7 | 1 . 2 2 . . . 2 Engine 4 | 1 . 1 1 . . . 1 Core 3 | . . 1 1 . . . 1 Reactor . | . . . . . . . . Propulsion 11 | 2 . . 7 . . . 2 Treads . | . . . . . . . . Leg 5 | 2 . . 3 . . . . Wheel . | . . . . . . . . Hover . | . . . . . . . . Flight 6 | . . . 4 . . . 2 Utility 17 | 2 3 3 9 . . . . Device 13 | 2 1 3 7 . . . . Storage 1 | . 1 . . . . . . Processor 1 | . . . 1 . . . . Hackware . | . . . . . . . . Protection 2 | . 1 . 1 . . . . Artifact . | . . . . . . . . Weapon 10 | 2 . 3 4 . . . 1 Energy Gun 6 | 1 . 1 3 . . . 1 Energy Cannon . | . . . . . . . . Ballistic Gun 3 | 1 . 1 1 . . . . Ballistic Cannon . | . . . . . . . . Launcher 1 | . . 1 . . . . . Special Weapon . | . . . . . . . . Impact Weapon . | . . . . . . . . Slashing Weapon . | . . . . . . . . Piercing Weapon . | . . . . . . . . Special Melee Weapon . | . . . . . . . . Unidentified Prototypes 1 | . . 1 . . . . . Parts Lost 16 | . . 1 1 . . . 14 Power 3 | . . . . . . . 3 Propulsion 5 | . . . . . . . 5 Utility 4 | . . 1 . . . . 3 Weapon 4 | . . . 1 . . . 3 Highest Loss Streak 9 | . . 1 1 . . . 9 Average Slot Usage (%) 94 | . 98 96 93 100 100 100 78 Engine 3 | . 12 8 . . . . 2 Core 7 | . . 3 9 10 10 10 6 Leg 13 | . 25 25 14 . . . . Flight 13 | . . . 13 30 30 30 24 Device 24 | . 24 21 23 30 30 30 23 Storage 5 | . 4 12 5 . . . . Processor 3 | . . . 1 10 10 10 8 Protection 3 | . 6 . 7 . . . . Energy Gun 10 | . 12 11 10 10 10 10 6 Ballistic Gun 7 | . 12 5 6 10 10 10 5 Launcher 2 | . . 7 . . . . . Naked Turns . | . . . . . . . . Heaviest Build 27 | 9 19 24 27 16 16 16 21 Greatest Support 35 | 20 20 20 35 24 24 24 29 Greatest Overweight (x) 8 | . . 1 8 1 . . 1 Average Overweight (x) . | . . . . . . . . Largest Inventory Capacity 8 | 4 8 8 8 4 4 4 4 Average Capacity 5 | 4 5 8 6 4 4 4 4 Most Carried 8 | . 2 8 8 4 4 3 3 Average Carried 4 | . 1 6 6 4 4 3 2 Final Capacity 8 | 4 8 8 4 4 4 4 4 Final Carried 8 | . 2 8 4 4 4 3 2 Class Distribution -------------------- 91% | Hacker-Mutant 5% | Scavenger-Mutant Dominant Class ---------------- Hacker-Mutant | -10/Materials Hacker-Mutant | -10/Mines Hacker-Mutant | -9/Materials Hacker-Mutant | -9/Mines Hacker-Mutant | -9/Exiles Hacker-Mutant | -8/Mines Hacker-Mutant | -8/Materials Resources | -11 -10 -10 -9 -9 -9 -8 -8 ----------- Run | Scr Mat Min Mat Min Exi Min Mat Matter Collected 815 | 129 186 122 282 21 . . 75 Remotely . | . . . . . . . . Salvage Created 1378 | . 48 186 571 120 . . 453 Parts 77 | . 3 11 30 11 . . 22 Haulers Intercepted . | . . . . . . . . Recyclers Shooed . | . . . . . . . . Parts Field Recycled . | . . . . . . . . Retrieved Matter . | . . . . . . . . Parts Self-Destructed . | . . . . . . . . Prevented . | . . . . . . . . Kills | -11 -10 -10 -9 -9 -9 -8 -8 ------- Run | Scr Mat Min Mat Min Exi Min Mat Combat Hostiles Destroyed 28 | . 2 4 9 5 . . 8 Guns 27 | . 1 4 9 5 . . 8 AOE 1 | . 1 . . . . . . Classes Destroyed 10 | . 3 2 2 . . . 3 Worker 1 | . 1 . . . . . . Builder 1 | . . . . . . . 1 Recycler 2 | . . 1 1 . . . . Operator 2 | . . . 1 . . . 1 Watcher 5 | . 1 . 4 . . . . Swarmer 8 | . 2 2 1 3 . . . Grunt 15 | . . 2 7 2 . . 4 Brawler 1 | . . . . . . . 1 Duelist 1 | . . . . . . . 1 Sentry 3 | . . . 1 . . . 2 Best Kill Streak 5 | . 3 5 3 5 . . 5 Combat Bots Only 5 | . 2 4 3 5 . . 2 Max Kills in Single Turn 2 | . 2 1 1 2 . . 2 Gunslinging 1 | . . . . 1 . . 1 Exploded 1 | . 1 . . . . . . Melee . | . . . . . . . . Uniques/NPCs Destroyed . | . . . . . . . . Combat | -11 -10 -10 -9 -9 -9 -8 -8 -------- Run | Scr Mat Min Mat Min Exi Min Mat Damage Taken 1655 | . 81 97 375 15 . . 1087 Core 680 | . 24 19 75 9 . . 553 Absorbed by Shields . | . . . . . . . . Core Remaining (%) 87 | 100 . 82 . . . 79 . Volleys Fired 97 | . 5 12 42 7 . . 31 Largest 2 | . 2 2 2 2 . . 2 Hottest 108 | . 70 66 108 108 . . 108 Shots Fired 147 | . 9 13 66 14 . . 45 Gun 146 | . 9 12 66 14 . . 45 Cannon . | . . . . . . . . Launcher 1 | . . 1 . . . . . Special . | . . . . . . . . Kinetic 68 | . 5 12 24 7 . . 20 Thermal 70 | . 4 . 42 7 . . 17 Explosive 1 | . . 1 . . . . . Electromagnetic 8 | . . . . . . . 8 Robot Hit Streak 24 | . 5 10 24 6 . . 15 Robot Miss Streak 2 | . 2 1 2 1 . . 1 Penetration Max . | . . . . . . . . Secondary Targets 2 | . . . . 1 . . 1 Max Gunslinging Chain 1 | . . . . 1 . . 1 Shots Hit Robots 116 | . 5 11 52 10 . . 38 Core Hits 54 | . 5 6 19 6 . . 18 Critical Hits 1 | . . . 1 . . . . Critical Kills . | . . . . . . . . Critical Parts Destroyed 1 | . . . 1 . . . . Melee Attacks . | . . . . . . . . Impact . | . . . . . . . . Slashing . | . . . . . . . . Piercing . | . . . . . . . . Sneak Attacks . | . . . . . . . . Combat Hostiles . | . . . . . . . . Follow-up Attacks . | . . . . . . . . Damage Inflicted 2350 | . 198 266 989 199 . . 698 Guns 2158 | . 60 223 978 199 . . 698 Cannons . | . . . . . . . . Explosions 181 | . 138 43 . . . . . Melee . | . . . . . . . . Ramming 11 | . . . 11 . . . . Kinetic 947 | . 23 223 295 94 . . 312 Thermal 1113 | . 37 . 683 105 . . 288 Explosive 181 | . 138 43 . . . . . Electromagnetic 98 | . . . . . . . 98 Impact . | . . . . . . . . Slashing . | . . . . . . . . Piercing . | . . . . . . . . Highest Corruption 1 | . . . 1 1 1 1 . Average Corruption 1 | . . . 1 1 1 1 . Corruption Purged . | . . . . . . . . Effects 6 | . . . 3 2 1 . . Message Errors 3 | . . . 1 1 1 . . Data Loss (minor) 2 | . . . 2 . . . . Targeting Errors 1 | . . . . 1 . . . Overload Shots . | . . . . . . . . Overflow Damage . | . . . . . . . . Projectiles . | . . . . . . . . Explosions . | . . . . . . . . Melee . | . . . . . . . . Knockbacks . | . . . . . . . . Impact . | . . . . . . . . Kinetic . | . . . . . . . . Secondary . | . . . . . . . . Self-Inflicted Damage 75 | . 65 5 5 . . . . Shots 2 | . 1 1 . . . . . Rammed 1 | . . . 1 . . . . Targets Rammed 1 | . . . 1 . . . . Kicked . | . . . . . . . . Crushed . | . . . . . . . . Highest Temperature 161 | . 36 22 120 48 . . 161 Average Temperature 41 | . 15 15 43 22 . . 52 Received Heat Transfer 672 | . . 36 108 15 . . 513 Siege Activations . | . . . . . . . . Robots Corrupted . | . . . . . . . . Combat Hostiles . | . . . . . . . . Parts Fried . | . . . . . . . . Impact Corruptions . | . . . . . . . . Robots Melted . | . . . . . . . . Combat Hostiles . | . . . . . . . . Parts Melted 1 | . . . 1 . . . . Heat Transferred 2220 | . 111 . 1406 185 . . 518 Parts Sabotaged . | . . . . . . . . Parts Stolen . | . . . . . . . . Parts Stripped . | . . . . . . . . Power Chain Reactions . | . . . . . . . . Missiles Intercepted . | . . . . . . . . Alert | -11 -10 -10 -9 -9 -9 -8 -8 ------- Run | Scr Mat Min Mat Min Exi Min Mat Peak Influence 222 | . 66 95 187 120 . . 222 Initial 18 | . . 18 . . . . . Average 53 | . 31 19 65 77 . . 106 Maximum Alert Level 1 | . . . . . . . 1 Low Security (%) 99 | 100 100 100 100 100 . 100 90 Level 1 . | . . . . . . . 9 Level 2 . | . . . . . . . . Level 3 . | . . . . . . . . Level 4 . | . . . . . . . . Level 5 . | . . . . . . . . High Security . | . . . . . . . . Max Security . | . . . . . . . . Squads Dispatched 4 | . . . 2 . . . 2 Investigation 1 | . . . 1 . . . . Extermination . | . . . . . . . . Reinforcement 2 | . . . 1 . . . 1 Assault . | . . . . . . . . Garrison 1 | . . . . . . . 1 Intercept . | . . . . . . . . Construction Impeded . | . . . . . . . . Haulers Reinforced . | . . . . . . . . Stealth | -11 -10 -10 -9 -9 -9 -8 -8 --------- Run | Scr Mat Min Mat Min Exi Min Mat Distress Signals 6 | . 1 . 4 . . . 1 Communications Jammed . | . . . . . . . . Distress Signals . | . . . . . . . . Times Spotted 66 | . 5 4 30 5 . . 22 Peak Tracking Total 7 | . 3 2 3 2 . . 7 Tactical Retreats 4 | . 1 . 3 . . . . Traps | -11 -10 -10 -9 -9 -9 -8 -8 ------- Run | Scr Mat Min Mat Min Exi Min Mat Traps Triggered 4 | . 1 . 3 . . . . Indirectly . | . . . . . . . . Trap Hack Attempts . | . . . . . . . . Triggered . | . . . . . . . . Disarmed 6 | . . . 6 . . . . Reprogrammed . | . . . . . . . . Reused . | . . . . . . . . Traps Extracted . | . . . . . . . . Installed . | . . . . . . . . Triggered . | . . . . . . . . Machines | -11 -10 -10 -9 -9 -9 -8 -8 ---------- Run | Scr Mat Min Mat Min Exi Min Mat Machines Disabled 1 | . 1 . . . . . . Max in Single Turn 1 | . 1 . . . . . . Machines Sabotaged . | . . . . . . . . Garrisons Compromised . | . . . . . . . . Overloaded Fab Kills . | . . . . . . . . Fab Network Shutdowns . | . . . . . . . . Hacking | -11 -10 -10 -9 -9 -9 -8 -8 --------- Run | Scr Mat Min Mat Min Exi Min Mat Machines Accessed 21 | . 1 1 12 . 4 . 3 Terminals 11 | . 1 . 7 . . . 3 Fabricators . | . . . . . . . . Repair Stations 2 | . . . 2 . . . . Recycling Units 1 | . . . 1 . . . . Scanalyzers 2 | . . . 2 . . . . Garrison Access . | . . . . . . . . Total Hacks 46 | . 3 1 30 . 4 . 8 Successful 33 | . . 1 21 . 4 . 7 Failed 13 | . 3 . 9 . . . 1 Catastrophic 2 | . 1 . 1 . . . . Database Lockouts . | . . . . . . . . Manual 13 | . 3 . 8 . . . 2 Terminals 30 | . 3 . 19 . . . 8 Fabricators . | . . . . . . . . Repair Stations 4 | . . . 4 . . . . Recycling Units 2 | . . . 2 . . . . Scanalyzers 5 | . . . 5 . . . . Garrison Access . | . . . . . . . . Terminal Hacks 26 | . . 1 14 . 4 . 7 Record 4 | . . . . . 4 . . Prototype ID Bank 3 | . . . 2 . . . 1 Open Door 1 | . . 1 . . . . . Branch Access Points 1 | . . . 1 . . . . Terminal Index 1 | . . . 1 . . . . Repair Station Index 1 | . . . . . . . 1 Scanalyzer Index 1 | . . . 1 . . . . Alert Level 3 | . . . 1 . . . 2 Unreport Threat 1 | . . . . . . . 1 Locate Traps 1 | . . . 1 . . . . Disarm Traps 1 | . . . 1 . . . . Dispatch Records 1 | . . . 1 . . . . Security Status 1 | . . . 1 . . . . Patrol Status 1 | . . . 1 . . . . Hauler Manifests 1 | . . . 1 . . . . Registered Components 1 | . . . 1 . . . . Registered Prototypes 1 | . . . 1 . . . . Zone Layout 2 | . . . . . . . 2 Fabricator Hacks . | . . . . . . . . Repair Station Hacks 2 | . . . 2 . . . . Scan Component 1 | . . . 1 . . . . Repair 1 | . . . 1 . . . . Recycling Unit Hacks 1 | . . . 1 . . . . Report Inventory 1 | . . . 1 . . . . Scanalyzer 3 | . . . 3 . . . . Insert Component 2 | . . . 2 . . . . Analyze 1 | . . . 1 . . . . Garrison Access Hacks . | . . . . . . . . Unauthorized Hacks 1 | . . . 1 . . . . Terminals . | . . . . . . . . Fabricators . | . . . . . . . . Repair Stations . | . . . . . . . . Recycling Units 1 | . . . 1 . . . . Monitor 1 | . . . 1 . . . . Scanalyzers . | . . . . . . . . Garrison Access . | . . . . . . . . Data Cores Recovered 1 | . . . 1 . . . . Used 1 | . . . 1 . . . . Hacking Detections 12 | . 1 . 9 . . . 2 Full Trace Events 3 | . 1 . 2 . . . . Feedback Events . | . . . . . . . . Feedback Blocked . | . . . . . . . . Robot Schematics Acquired . | . . . . . . . . Robots Built . | . . . . . . . . Matter . | . . . . . . . . Time . | . . . . . . . . Total Robot Build Rating . | . . . . . . . . Part Schematics Acquired 1 | . . . 1 . . . . Parts Built . | . . . . . . . . Matter . | . . . . . . . . Time . | . . . . . . . . Total Part Build Rating . | . . . . . . . . Parts Repaired 1 | . . . 1 . . . . Time 61 | . . . 61 . . . . Parts Recycled . | . . . . . . . . Recycled Matter . | . . . . . . . . Retrieved Matter . | . . . . . . . . Retrieved Components . | . . . . . . . . Parts Scanalyzed 2 | . . . 2 . . . . Part Schematics Acquired 1 | . . . 1 . . . . Parts Damaged 1 | . . . 1 . . . . Bothacking | -11 -10 -10 -9 -9 -9 -8 -8 ------------ Run | Scr Mat Min Mat Min Exi Min Mat Used RIF Installer . | . . . . . . . . Robots Hacked . | . . . . . . . . Non-combat . | . . . . . . . . Combat . | . . . . . . . . Robot Hacks Applied . | . . . . . . . . Relay Couplers Released . | . . . . . . . . Robots Rewired . | . . . . . . . . Allies Hacked . | . . . . . . . . Hacks Repelled . | . . . . . . . . Allies | -11 -10 -10 -9 -9 -9 -8 -8 -------- Run | Scr Mat Min Mat Min Exi Min Mat Total Allies . | . . . . . . . . Largest Group . | . . . . . . . . Highest-Rated Group . | . . . . . . . . Highest-Rated Ally . | . . . . . . . . Total Orders . | . . . . . . . . Ally Attacks . | . . . . . . . . Total Damage . | . . . . . . . . Kills . | . . . . . . . . Allies Corrupted . | . . . . . . . . Allies Melted . | . . . . . . . . Intel | -11 -10 -10 -9 -9 -9 -8 -8 ------- Run | Scr Mat Min Mat Min Exi Min Mat Robot Analysis Total . | . . . . . . . . Derelict Logs Recovered . | . . . . . . . . Drone Launches . | . . . . . . . . Drone Recoveries . | . . . . . . . . Exploration | -11 -10 -10 -9 -9 -9 -8 -8 ------------- Run | Scr Mat Min Mat Min Exi Min Mat Turns Passed 3588 | 70 234 953 1276 492 271 8 284 Spaces Moved 3558 | 66 153 654 1251 606 450 22 356 Core 39 | 27 . . 4 7 . . 1 Treads . | . . . . . . . . Legs 1279 | 39 153 654 433 . . . . Wheels . | . . . . . . . . Hover . | . . . . . . . . Flight 2240 | . . . 814 599 450 22 355 Fastest Speed 31 | 50 120 120 34 34 34 34 31 Average Speed 67 | 91 120 129 66 34 34 34 34 Slowest Speed 450 | 120 120 150 450 100 34 34 100 Overloaded Moves . | . . . . . . . . Propulsion Burnouts . | . . . . . . . . Robots Hopped 7 | . . . 4 2 . . 1 Cave-ins Triggered . | . . . . . . . . Exploration Rate (%) 55 | 4 33 96 83 99 91 14 25 Regions Visited 7 Branch Regions 4 Pre-discovered Areas . | . . . . . . . . Known Exits Taken 7 | 1 1 1 1 1 1 1 . Unknown Exits Taken . | . . . . . . . . Scrap Searched . | . . . . . . . . Spaces Dug . | . . . . . . . . Terrain Destroyed 46 | . 31 13 . . . . 2 Melee . | . . . . . . . . Projectile 3 | . . 1 . . . . 2 AOE 43 | . 31 12 . . . . . Terrain Rammed . | . . . . . . . . Walls Destroyed . | . . . . . . . . Machines Disabled . | . . . . . . . . Actions | -11 -10 -10 -9 -9 -9 -8 -8 --------- Run | Scr Mat Min Mat Min Exi Min Mat Total 4560 | 72 194 747 1618 870 567 22 470 Wait 844 | . 30 65 292 260 118 . 79 Move 3537 | 65 152 653 1242 601 449 21 354 Hop 7 | . . . 4 2 . . 1 Pick Up 10 | . 3 5 2 . . . . Fast Attach 23 | 7 1 2 9 . . . 4 Attach 7 | . 2 1 3 . . . 1 Detach 3 | . 1 1 1 . . . . Swap 15 | . . 5 10 . . . . Drop 16 | . . 3 12 . . 1 . Fire 97 | . 5 12 42 7 . . 31 Melee . | . . . . . . . . Ram . | . . . . . . . . Kick 1 | . . . 1 . . . . Crush . | . . . . . . . . Escape Stasis . | . . . . . . . . Rewire . | . . . . . . . . Trap . | . . . . . . . . Miscellaneous . | . . . . . . . . Route ------- -11/Scrapyard -10/Materials -10/Mines (discovered 2 exits: *Mat x2) -9/Materials (discovered 5 exits: *Mat x2 / *Min / *Sto x2) -9/Mines (discovered 3 exits: *Mat x2 / *Exi) -9/Exiles -8/Mines -8/Materials History --------- Turn | Location | Event 5 | -11/Scrapyard | Identified exit to Materials 5 | -11/Scrapyard | Discovered exit to Materials (range 15) 71 | -11/Scrapyard | Entered Materials 71 | -10/Materials | Evolved 1 slot: Utility x1 293 | -10/Materials | Identified exit to Mines 293 | -10/Materials | Discovered exit to Mines (range 10) 302 | -10/Materials | Build established: Hacker-Mutant 305 | -10/Materials | Entered Mines 401 | -10/Mines | Received a Rocket Launcher from a helpful Derelict 454 | -10/Mines | Found a damaged Exp. Sensor Array with a note attached 457 | -10/Mines | Found Prototype Device 457 | -10/Mines | Identified Exp. Sensor Array 723 | -10/Mines | Met a Derelict who couldn't figure out how to use a Trap Extractor 936 | -10/Mines | Identified exit to Materials 936 | -10/Mines | Discovered exit to Materials (range 11) 940 | -10/Mines | A weapon hastily lodged in a ceiling crevice suddenly fell to the ground 1076 | -10/Mines | Discovered exit to Materials (range 4) 1258 | -10/Mines | Entered Materials 1258 | -9/Materials | Evolved 2 slots: Propulsion x1, Utility x1 1539 | -9/Materials | Identified exit to Storage 1539 | -9/Materials | Discovered exit to Storage (range 10) 1742 | -9/Materials | Repaired Broken Imp. Trap Extractor 1997 | -9/Materials | Identified exit to Mines 2147 | -9/Materials | Identified exit to Materials 2147 | -9/Materials | Discovered exit to Materials (range 14) 2459 | -9/Materials | Discovered exit to Materials (range 16) 2534 | -9/Materials | Entered Mines 2547 | -9/Mines | Met a Derelict bent on vengeance 2848 | -9/Mines | Discovered exit to Materials (range 15) 3016 | -9/Mines | Discovered exit to Materials (range 6) 3024 | -9/Mines | Deemed a non-threat by the Exiles lab entrance 3024 | -9/Mines | Identified exit to Exiles 3024 | -9/Mines | Discovered exit to Exiles (range 5) 3026 | -9/Mines | Entered Exiles 3026 | -9/Exiles | Found Exiles lab abandoned 3293 | -9/Exiles | Identified exit to Mines 3293 | -9/Exiles | Discovered exit to Mines (range 14) 3297 | -9/Exiles | Entered Mines 3300 | -8/Mines | Discovered exit to Materials (range 7) 3305 | -8/Mines | Entered Materials 3305 | -8/Materials | Evolved 2 slots: Power x1, Propulsion x1 3539 | -8/Materials | Lost 5 parts (2p1n2w) 3562 | -8/Materials | Garrison activated, responded to threat 3577 | -8/Materials | Core integrity fell below 50% 3584 | -8/Materials | Core integrity fell below 20% 3589 | -8/Materials | Destroyed by H-55 Commando with Assault Rifle Last Messages --------------- 03541_ Cesium-ion Thruster destroyed. 03559_ Penetrated by Slug. 03559_ Cesium-ion Thruster destroyed. 03560_ VTOL Module destroyed. 03562_ Penetrated by Slug. 03562_ G-50 Soldier calls for garrison reinforcements. 03562_ ALERT: Activating Garrison Access M001. 03564_ Hvy. EM Pulse Gun destroyed. 03565_ G-50 Soldier misfires. 03566_ Imp. Heat Sink destroyed. 03571_ Penetrated by Slug. 03571_ Deuterium Engine destroyed. 03571_ Structural Scanner destroyed. 03574_ Penetrated by Slug. 03575_ Weight Redist. System destroyed. 03577_ Penetrated by Slug. 03577_ G-50 Soldier IFF system glitched. 03583_ Penetrated by Slug. 03587_ G-50 Soldier misfires. 03589_ Penetrated by Slug. Map ----- +----------------------------------------------------+ | ?????????????????????????????????????????????????? | | ?????????????????????????????????????????????????? | | ?????????????????????????????????????????????????? | | ?????????????????????????????????????????????????? | | ?????????????????????????????????????????????????? | | ?????????????????????????????????????????????????? | | ?????????????????????????????????? ????????????? | | ?????????????????????????????????# ????????????? | | ?????????????????????????????????# ????????????? | | ?????????????????????????????????# #???????????? | | ?????????????????????????????????# #???????????? | | ?????????????????????????????????# #???????????? | | ?????????????????????????????##### #???????????? | | ?????????????????????????????#** #???????????? | | ?????????????????????????????#** #???????????? | | ?????????????????????????????#** #???????????? | | ??????????????????????????????** %+???????????? | | ???????????????????????????????! #???????????? | | ???????????????????????????????? #???????????? | | ???????????????????????########### # "T" """ + | | ???????????????????????# # # """ # | | ???????????????????????# # %########### | | ???????????????????????# [[ghs# | | ???????????????????????# [ g + | | ???????????????????????# [ Y # ^ | | ???????????????????????# @ s #^^ ^ ###### | | ???????????????????????# = # # """ | | ???????????????????????# # ^" " # """ | | ???????????????????????########### % "G" # """ | | ?????????????????????????? ## """ # | | ?????????????????????????? """ ## %* + | | ?????????????????????????? """ ## = # | | "????????????????????????? """ ## ####+### | | ???????????##???#######?? ## ## # [ | | +######+########## [ #####+##### ## "T" ###### | | #??# ## """ #????? | | #### ## #????? | | %%! ########????? | | # #####+####+### #### ""#?????????? | | # #???# =*=###+###### T"#?????????? | | # #???# """ # # "" ""#?????????? | | # #???# """ # ! # %T" ############# | | # ##### """ # # "" | | # + # + | | # =[##### """ # # | | ##!##???# """ % # ###################+#### | | ?#%#????# """ # #?????????????# | | ?#*#????# # #?????????????# % | | ?#!############### ] #?????????????# | | ?#[% #??#####+####?????????????# | +----------------------------------------------------+ Best States ------------- Heat Dissipation 45 Energy Generation 23 Energy Capacity 275 Matter Stores 300 Matter Capacity 300 Sight Range 16 Robot Scan Range 30 Terrain Scan Density 10 ECM Strength 2 Additional Mass Support 6 Armor Coverage 150 Resistance: KI 35 Resistance: TH 35 Resistance: EX 35 Resistance: EM 35 Resistance: I 35 Resistance: S 35 Resistance: P 35 Evasion (%) 63 Offensive Hacking 20 Item Schematics ----------------- Imp. Trap Extractor | -9/Materials | Scanalyzed Robot Schematics ------------------ None Fabricated ------------ Nothing Alien Tech Used ----------------- None Achievements -------------- Dynamic Key Challenges ------------ None Game ------ Seed BattleOverloadMinigun Manual? 0 Play Time 00:55:33 Cumulative 10.8 hours Start 2020.10.14 @ 12:18:48 End 2020.10.14 @ 13:36:18 Sessions 1 Manual Loads 0 Difficulty Explorer Special Mode None Game No. 4 Rogue 0 Adventurer 0 Explorer 4 Win Type - Total 0 Types 0/0/0/0/0/0/0/0/0 Lore% 21 Gallery% 16 Achievement% 17 Wizard Run 0 Options --------- ASCII 0 Keyboard 0 Movement Mouse Keybinds 0 Fullscreen 0 Font 16/SmallcapsGlow Map View 76x50 Tactical HUD 1 Map Filters NONE Filters NONE Steam 1 RUN: 7f721480-4bb7-494c-b55e-ea7ad32e000f